bitfinex/quotes_BTCUSD_20250123
["timestamp","ask_amount","ask_price","bid_price","bid_amount"]
[1737650767766,0.39046081,106310.0,106300.0,0.01928]
[1737650767979,0.39096047,106310.0,106300.0,0.01928]
[1737650768199,0.31989647,106310.0,106280.0,0.30184]
[1737650768439,0.15359252,106290.0,106280.0,0.32071]
[1737650768677,0.25143947,106310.0,106300.0,0.094073]
[1737650768886,0.34550347,106310.0,106300.0,0.094073]
[1737650769310,0.00049966,106310.0,106300.0,0.094073]
[1737650769522,0.34550347,106310.0,106300.0,0.094073]
[1737650769735,0.34550347,106310.0,106300.0,0.02850461]
[1737650769907,0.34550347,106310.0,106300.0,0.094073]
[1737650770154,0.34550347,106310.0,106280.0,0.490017]
[1737650770155,0.094073,106300.0,106280.0,0.490017]
[1737650770355,0.34502181,106290.0,106280.0,0.04809728]
[1737650770777,0.43582852,106300.0,106290.0,0.094082]
[1737650770984,0.34501281,106300.0,106290.0,0.094082]
[1737650771223,0.094082,106290.0,106280.0,0.113673]
[1737650771382,0.25093981,106290.0,106280.0,0.113673]
[1737650771587,0.25093981,106290.0,106280.0,0.14221766]
[1737650771809,0.15359252,106290.0,106280.0,0.16106766]
[1737650772011,0.62398752,106300.0,106280.0,0.34923766]
[1737650772265,0.72133481,106300.0,106280.0,0.508863]
[1737650772566,0.43630318,106310.0,106300.0,0.094073]
[1737650772743,0.53365047,106310.0,106300.0,0.094073]
[1737650773196,0.15359252,106310.0,106300.0,0.094073]
[1737650773406,0.62385352,106330.0,106310.0,0.094058]
[1737650773581,0.43905681,106320.0,106310.0,0.00014928]
[1737650773804,0.71085433,106320.0,106310.0,0.00014928]
[1737650774511,0.55611181,106320.0,106310.0,0.00014928]
[1737650774719,0.52979852,106330.0,106310.0,0.09421328]
[1737650774943,0.34499481,106320.0,106310.0,0.00014928]
[1737650775368,0.36914481,106320.0,106310.0,0.00014928]
[1737650775583,0.117099,106270.0,106260.0,0.00995534]
[1737650775793,0.21444629,106270.0,106260.0,0.00079786]
[1737650775997,0.36803881,106270.0,106260.0,0.00079786]
[1737650776431,0.27393981,106270.0,106260.0,0.09490586]
[1737650776644,0.15359252,106290.0,106270.0,0.188199]
[1737650776856,0.15359252,106320.0,106280.0,0.30539729]
[1737650777064,0.09734729,106310.0,106290.0,0.188147]
[1737650777278,0.25093981,106320.0,106310.0,0.094064]
[1737650777532,0.15359252,106320.0,106310.0,0.094064]
[1737650777742,0.15359252,106320.0,106310.0,0.19141129]
[1737650778161,0.15359252,106360.0,106340.0,0.188064]
[1737650778367,0.09734729,106360.0,106340.0,0.376124]
[1737650778579,0.09734729,106360.0,106340.0,0.37627329]
[1737650778816,0.36243472,106350.0,106340.0,0.00014929]
[1737650779024,0.01746591,106350.0,106340.0,0.09418629]
[1737650779225,0.01746591,106350.0,106340.0,0.19153358]
[1737650779803,0.0001425,106370.0,106340.0,0.09849658]
[1737650779997,0.0001425,106370.0,106360.0,0.09402]
[1737650780197,0.09748979,106370.0,106350.0,0.188043]
[1737650780427,0.0001425,106370.0,106360.0,0.09402]
[1737650781958,0.0941535,106370.0,106360.0,0.09402]
[1737650782157,0.023,106360.0,106350.0,0.282066]
[1737650782847,0.37956679,106370.0,106360.0,0.09402]
[1737650782848,0.0001825,106370.0,106360.0,0.09402]
[1737650783254,0.0231825,106370.0,106360.0,0.09402]
[1737650783667,0.0001825,106370.0,106360.0,0.19136729]
[1737650784090,0.0001825,106370.0,106360.0,0.21120729]
[1737650784702,0.0231825,106370.0,106360.0,0.09402]
[1737650784911,0.1171975,106370.0,106350.0,0.490951]
[1737650785116,0.0231825,106370.0,106360.0,0.09402]
[1737650785535,0.40257079,106370.0,106350.0,0.470111]
[1737650785830,0.24251193,106370.0,106360.0,0.001]
[1737650786282,0.43053693,106370.0,106350.0,0.489954]
[1737650786497,0.117029,106350.0,106340.0,0.00014929]
[1737650786709,0.36796881,106350.0,106340.0,0.00014929]
[1737650786915,0.38796881,106350.0,106340.0,0.00014929]
[1737650787115,0.61836881,106350.0,106340.0,0.00014929]
[1737650787242,0.7157161,106350.0,106340.0,0.00014929]
[1737650788046,0.59836881,106350.0,106340.0,0.00014929]
[1737650788302,0.66836881,106350.0,106340.0,0.00014929]
[1737650788605,0.64836881,106350.0,106340.0,0.00014929]
[1737650788805,0.51796881,106350.0,106340.0,0.00014929]
[1737650789019,0.36796881,106350.0,106340.0,0.00014929]
[1737650789225,0.24762152,106350.0,106340.0,0.00014929]
[1737650789364,0.27062152,106350.0,106340.0,0.00014929]
[1737650789576,0.24782902,106370.0,106350.0,0.094023]
[1737650789794,0.24762902,106370.0,106350.0,0.094023]
[1737650790003,0.15359252,106360.0,106350.0,0.094029]
[1737650790215,0.43566402,106370.0,106350.0,0.282047]
[1737650790425,0.62369602,106370.0,106350.0,0.093989]
[1737650790622,0.62702731,106370.0,106340.0,0.37626929]
[1737650790824,0.27061252,106360.0,106340.0,0.47029829]
[1737650790978,0.11702,106360.0,106340.0,0.47029829]
[1737650791174,0.45865352,106360.0,106340.0,0.28224829]
[1737650791383,0.45866052,106360.0,106340.0,0.28225129]
[1737650791591,0.45866052,106360.0,106340.0,0.00014929]
[1737650791592,0.27062152,106350.0,106340.0,0.00014929]
[1737650792056,0.36796881,106350.0,106340.0,0.00014929]
[1737650793131,0.24762152,106350.0,106340.0,0.00014929]
[1737650793333,0.17659252,106350.0,106340.0,0.09518629]
[1737650793569,0.27062152,106350.0,106340.0,0.00114929]
[1737650793782,0.36796881,106350.0,106340.0,0.00114929]
[1737650793986,0.3839181,106350.0,106340.0,0.00114929]
[1737650794419,0.56796881,106350.0,106340.0,0.00114929]
[1737650794625,0.27062152,106350.0,106340.0,0.00114929]
[1737650795019,0.15359252,106350.0,106340.0,0.09518629]
[1737650795254,0.01851111,106360.0,106350.0,0.094029]
[1737650795445,0.17210363,106360.0,106350.0,0.094029]
[1737650795797,0.24761252,106360.0,106350.0,0.094029]
[1737650796009,0.24761252,106360.0,106340.0,0.18821329]
[1737650796303,0.24762152,106350.0,106340.0,0.00014929]
[1737650796523,0.17659252,106350.0,106340.0,0.00014929]
[1737650796721,0.17659252,106350.0,106340.0,0.09418629]
[1737650796922,0.17659252,106350.0,106340.0,0.00014929]
[1737650797073,0.023,106350.0,106340.0,0.09418629]
[1737650797703,0.17659252,106350.0,106340.0,0.09418629]
[1737650798244,0.15359252,106360.0,106340.0,0.00114929]
[1737650798448,0.24762602,106370.0,106350.0,0.470121]
[1737650798648,0.15361502,106370.0,106360.0,0.09402]
[1737650799044,0.24762602,106370.0,106360.0,0.09402]
[1737650799264,0.27062602,106370.0,106360.0,0.09402]
[1737650799671,0.17661502,106370.0,106360.0,0.09402]
[1737650799868,0.0010225,106370.0,106360.0,0.26786729]
[1737650800847,0.15461502,106370.0,106360.0,0.28766729]
[1737650801002,0.0010225,106370.0,106360.0,0.28766729]
[1737650801204,2.25e-05,106370.0,106360.0,0.28766729]
[1737650801632,2.25e-05,106370.0,106360.0,0.28966729]
[1737650802022,2.25e-05,106370.0,106360.0,0.28766729]
[1737650802437,0.17661502,106370.0,106360.0,0.11582]
[1737650802648,0.27062602,106370.0,106360.0,0.11582]
[1737650802937,0.27062602,106370.0,106360.0,0.0218]
[1737650803147,0.27062602,106370.0,106360.0,0.002]
[1737650803148,0.36797331,106370.0,106360.0,0.002]
[1737650804585,0.09402,106360.0,106350.0,0.094026]
[1737650804792,0.11702,106360.0,106350.0,0.094026]
[1737650804946,0.023,106350.0,106340.0,0.28224229]
[1737650805352,0.023,106350.0,106340.0,0.25724229]
[1737650805517,0.305093,106350.0,106340.0,0.094037]
[1737650806075,0.305093,106350.0,106330.0,0.47977636]
[1737650806303,0.45868552,106350.0,106330.0,0.66800871]
[1737650806516,0.023,106340.0,106330.0,0.28226935]
[1737650806727,0.023,106340.0,106330.0,0.00014935]
[1737650806728,0.27062952,106340.0,106330.0,0.00014935]
[1737650806936,0.36797681,106340.0,106330.0,0.00014935]
[1737650807137,0.51797681,106340.0,106330.0,0.00014935]
[1737650807338,0.69156933,106340.0,106330.0,0.00014935]
[1737650807597,0.78891662,106340.0,106330.0,0.00014935]
[1737650807803,0.51797681,106340.0,106330.0,0.00014935]
[1737650808278,0.56797681,106340.0,106330.0,0.00014935]
[1737650808481,0.52497681,106340.0,106330.0,0.00114935]
[1737650808690,0.57497681,106340.0,106330.0,0.00014935]
[1737650808903,0.15,106330.0,106310.0,0.094064]
[1737650809109,0.305198,106310.0,106290.0,0.470376]
[1737650809344,0.023,106300.0,106290.0,0.28273066]
[1737650809547,0.001,106340.0,106330.0,0.094046]
[1737650809755,0.001,106340.0,106310.0,0.02]
[1737650809756,0.094048,106330.0,106320.0,0.094053]
[1737650809961,0.53406981,106340.0,106320.0,0.188102]
[1737650810167,0.001,106340.0,106330.0,0.094046]
[1737650810865,0.27062952,106340.0,106330.0,0.00014937]
[1737650811097,0.376103,106360.0,106340.0,0.094037]
[1737650811331,0.24762152,106350.0,106330.0,0.35726837]
[1737650811567,0.27062952,106340.0,106330.0,0.00014937]
[1737650811800,0.17659252,106340.0,106330.0,0.09419537]
[1737650812035,0.023,106340.0,106330.0,0.09519537]
[1737650812264,0.36797681,106340.0,106330.0,0.00114937]
[1737650812494,0.4653241,106340.0,106330.0,0.00114937]
[1737650812995,0.6653241,106340.0,106330.0,0.00114937]
[1737650814623,4e-05,106340.0,106330.0,0.27204266]
[1737650815061,4e-05,106340.0,106330.0,0.29204266]
[1737650815308,4e-05,106340.0,106330.0,0.27204266]
[1737650815561,4e-05,106340.0,106330.0,0.27104266]
[1737650817019,4e-05,106340.0,106330.0,0.27304266]
[1737650817264,4e-05,106340.0,106330.0,0.27104266]
[1737650817754,4e-05,106340.0,106330.0,0.27304266]
[1737650818506,4e-05,106340.0,106330.0,0.2822997]
[1737650818759,4e-05,106340.0,106330.0,0.28259895]
[1737650819274,4e-05,106340.0,106330.0,0.10905295]
[1737650819275,0.24766952,106340.0,106330.0,0.10905295]
[1737650819564,0.24766952,106340.0,106330.0,0.00244862]
[1737650819565,0.33305037,106340.0,106330.0,0.00244862]
[1737650819790,0.094073,106300.0,106290.0,0.00950124]
[1737650820004,0.267082,106290.0,106280.0,0.00079912]
[1737650820211,0.72161433,106290.0,106280.0,0.00079912]
[1737650820646,0.67161433,106290.0,106280.0,0.00079912]
[1737650820880,0.51802181,106290.0,106280.0,0.00079912]
[1737650821258,0.56802181,106290.0,106280.0,0.00079912]
[1737650821444,0.81896162,106290.0,106280.0,0.00079912]
[1737650821643,0.56802181,106290.0,106280.0,0.00079912]
[1737650821870,0.42067452,106290.0,106280.0,0.00079912]
[1737650822078,0.17659252,106290.0,106280.0,0.09489012]
[1737650822235,0.27067452,106290.0,106280.0,0.09489012]
[1737650822434,0.17659252,106290.0,106280.0,0.09489012]
[1737650822634,0.15359252,106290.0,106280.0,0.09489012]
[1737650822833,0.27067452,106290.0,106280.0,0.00079912]
[1737650823282,0.42426704,106290.0,106280.0,0.00079912]
[1737650823528,0.78631398,106290.0,106280.0,0.00079912]
[1737650823872,0.86271398,106290.0,106280.0,0.00079912]
[1737650824099,0.88271398,106290.0,106280.0,0.00079912]
[1737650824911,0.317099,106270.0,106260.0,0.0002982]
[1737650825113,0.66254366,106270.0,106260.0,0.0002982]
[1737650825466,0.79170521,106270.0,106260.0,0.0002982]
[1737650825674,0.244117,106250.0,106240.0,0.0002982]
[1737650825879,0.72164933,106250.0,106240.0,0.0002982]
[1737650826082,0.77316484,106250.0,106240.0,0.0002982]
[1737650826287,0.39362584,106250.0,106240.0,0.0002982]
[1737650826483,0.52164933,106250.0,106240.0,0.0002982]
[1737650826700,0.77316484,106250.0,106240.0,0.0002982]
[1737650826907,0.86986456,106250.0,106240.0,0.0002982]
[1737650827333,0.16864151,106240.0,106230.0,0.0002982]
[1737650827541,0.2,106230.0,106220.0,2e-08]
[1737650827749,0.72318284,106230.0,106220.0,2e-08]
[1737650827980,0.72809659,106230.0,106220.0,2e-08]
[1737650828480,0.72809659,106230.0,106200.0,0.0002982]
[1737650828481,0.337153,106210.0,106200.0,0.0002982]
[1737650828722,0.92455488,106210.0,106200.0,1e-08]
[1737650828928,0.92455488,106210.0,106170.0,0.00029841]
[1737650828929,0.117179,106180.0,106170.0,0.00029841]
[1737650829135,0.59368627,106180.0,106170.0,0.00029841]
[1737650829407,0.56811881,106180.0,106170.0,0.00029841]
[1737650829577,0.6154661,106180.0,106170.0,0.00029841]
[1737650829777,0.36861792,106180.0,106170.0,0.00029841]
[1737650830061,0.56861792,106180.0,106170.0,0.00029841]
[1737650830427,0.17709163,106180.0,106170.0,0.09448641]
[1737650830629,0.41861792,106180.0,106170.0,0.00029841]
[1737650830787,0.4999885,106180.0,106170.0,0.00029841]
[1737650831219,0.36861792,106180.0,106170.0,0.00029841]
[1737650831615,0.17709163,106180.0,106170.0,0.09448641]
[1737650832027,0.15409163,106180.0,106170.0,0.09448641]
[1737650832256,0.17709163,106180.0,106170.0,0.09448641]
[1737650832456,0.36861792,106180.0,106170.0,0.00029841]
[1737650832794,0.27443892,106180.0,106170.0,0.09448641]
[1737650832998,0.00049911,106180.0,106170.0,0.1918337]
[1737650833199,0.15359252,106210.0,106190.0,0.18833]
[1737650833400,0.15359252,106210.0,106200.0,0.093661]
[1737650833594,0.15359252,106220.0,106210.0,0.094153]
[1737650833769,0.094159,106210.0,106190.0,0.18847946]
[1737650834004,0.09734729,106220.0,106210.0,0.094153]
[1737650834187,0.19149129,106220.0,106210.0,0.094153]
[1737650834400,0.15359252,106220.0,106210.0,0.094153]
[1737650834653,0.27115508,106230.0,106210.0,0.282449]
[1737650834815,0.70677337,106230.0,106220.0,0.094144]
[1737650835077,0.40264427,106230.0,106210.0,0.3766]
[1737650835278,0.40264427,106230.0,106210.0,0.37659]
[1737650835445,0.40264427,106230.0,106220.0,0.19149129]
[1737650835446,0.00491375,106230.0,106220.0,0.19149129]
[1737650835648,0.15359252,106250.0,106230.0,0.282392]
[1737650835872,0.43595952,106250.0,106240.0,0.094126]
[1737650835993,0.15359252,106250.0,106240.0,0.094126]
[1737650836217,0.24770952,106250.0,106240.0,0.094126]
[1737650836443,0.15359252,106250.0,106240.0,0.094126]
[1737650836660,0.32517637,106250.0,106230.0,0.188256]
[1737650836870,0.282393,106240.0,106220.0,0.360417]
[1737650837112,0.36806981,106240.0,106230.0,0.094135]
[1737650837333,0.27393981,106240.0,106230.0,0.094135]
[1737650837553,0.023,106240.0,106230.0,0.094135]
[1737650837779,0.17624452,106260.0,106250.0,0.094117]
[1737650838005,0.43592152,106260.0,106250.0,0.094117]
[1737650838230,0.25261307,106260.0,106250.0,0.094117]
[1737650838466,0.023,106230.0,106220.0,0.00014946]
[1737650838726,0.023,106230.0,106220.0,0.28256746]
[1737650838980,0.15,106250.0,106240.0,0.087126]
[1737650839211,0.42070952,106250.0,106240.0,0.087126]
[1737650839445,0.267117,106250.0,106240.0,0.087126]
[1737650839898,0.023,106240.0,106230.0,0.376514]
[1737650840134,0.023,106240.0,106230.0,0.282383]
[1737650841218,0.45897152,106240.0,106220.0,0.47084046]
[1737650841427,0.36807481,106230.0,106220.0,0.09429346]
[1737650841634,0.023,106230.0,106220.0,0.09429346]
[1737650842084,0.0231427,106230.0,106220.0,0.09429346]
[1737650843062,0.0231427,106230.0,106220.0,0.09529346]
[1737650843063,0.27087022,106230.0,106220.0,0.09529346]
[1737650843525,0.27087022,106230.0,106220.0,0.09429346]
[1737650843774,0.27087022,106230.0,106220.0,0.00114946]
[1737650844226,0.36821751,106230.0,106220.0,0.00114946]
[1737650844459,0.36821751,106230.0,106220.0,0.09529346]
[1737650844460,0.0231427,106230.0,106220.0,0.09529346]
[1737650845913,0.27087022,106230.0,106220.0,0.00114946]
[1737650847274,0.27087022,106230.0,106220.0,0.09429346]
[1737650847465,0.1172777,106230.0,106220.0,0.00014946]
[1737650847615,0.27187022,106230.0,106220.0,0.00014946]
[1737650848262,0.56921751,106230.0,106220.0,0.00014946]
[1737650848484,0.6665648,106230.0,106220.0,0.00014946]
[1737650848694,0.0241427,106230.0,106220.0,0.09429346]
[1737650848826,0.0011427,106230.0,106220.0,0.27314075]
[1737650849033,7e-07,106230.0,106220.0,0.42314075]
[1737650849228,0.00491155,106260.0,106250.0,0.094117]
[1737650849460,0.188164,106290.0,106230.0,0.236758]
[1737650849792,0.15359252,106260.0,106250.0,0.094111]
[1737650850008,0.43592452,106260.0,106240.0,0.470617]
[1737650850231,0.17659252,106250.0,106240.0,0.282363]
[1737650850640,0.023,106250.0,106240.0,0.282363]
[1737650851062,0.02791182,106250.0,106240.0,0.282363]
[1737650851404,0.12202882,106250.0,106240.0,0.282363]
[1737650851606,0.023,106240.0,106230.0,0.282386]
[1737650852284,0.023,106230.0,106220.0,0.09428546]
[1737650853082,0.43084581,106240.0,106220.0,0.28256346]
[1737650853285,0.62911234,106250.0,106230.0,0.094135]
[1737650853467,0.62911234,106250.0,106230.0,0.282394]
[1737650853468,0.094126,106240.0,106230.0,0.282394]
[1737650853712,0.72646063,106250.0,106230.0,0.283394]
[1737650853966,0.72646063,106250.0,106230.0,0.471664]
[1737650854119,0.53821663,106250.0,106240.0,0.094126]
[1737650854322,0.094126,106240.0,106230.0,0.282386]
[1737650854490,0.34506581,106240.0,106230.0,0.00129967]
[1737650854930,0.34506581,106240.0,106230.0,0.09543467]
[1737650855136,0.19147329,106240.0,106230.0,0.00029967]
[1737650855341,0.023,106240.0,106230.0,0.09443467]
[1737650856783,0.00505452,106250.0,106240.0,0.094126]
[1737650856926,0.0001427,106250.0,106240.0,0.44979186]
[1737650857127,0.0001427,106250.0,106240.0,0.46979186]
[1737650857334,7e-07,106250.0,106240.0,0.51979186]
[1737650857535,0.43579852,106310.0,106260.0,0.188215]
[1737650857795,0.39766552,106300.0,106290.0,0.282229]
[1737650857906,0.41691102,106300.0,106290.0,0.094082]
[1737650858335,0.2633185,106300.0,106290.0,0.094082]
[1737650858763,0.26381822,106300.0,106290.0,0.094082]
[1737650858998,0.45197022,106300.0,106280.0,0.470422]
[1737650859219,0.70391003,106300.0,106290.0,0.094082]
[1737650859396,0.38875803,106300.0,106290.0,0.094082]
[1737650859630,0.38875803,106300.0,106280.0,0.564509]
[1737650859631,0.117082,106290.0,106280.0,0.282254]
[1737650859747,0.17659252,106290.0,106280.0,0.282254]
[1737650859949,0.023,106290.0,106280.0,0.282254]
[1737650860162,0.02565526,106300.0,106290.0,0.094082]
[1737650860607,0.02840976,106300.0,106290.0,0.094082]
[1737650861466,0.00540976,106300.0,106290.0,0.094082]
[1737650861714,0.00049972,106300.0,106290.0,0.094082]
[1737650861906,0.00149972,106300.0,106290.0,0.094082]
[1737650862228,0.09557872,106300.0,106280.0,0.396053]
[1737650862430,0.02349972,106300.0,106290.0,0.094082]
[1737650862640,0.023,106290.0,106280.0,0.207886]
[1737650862775,0.023,106290.0,106280.0,0.301972]
[1737650863364,0.00049972,106300.0,106290.0,0.094082]
[1737650863496,0.09457272,106300.0,106290.0,0.094082]
[1737650863714,0.17709224,106300.0,106290.0,0.094082]
[1737650864747,0.00049972,106300.0,106290.0,0.094082]
[1737650865096,0.02349972,106300.0,106290.0,0.094082]
[1737650865930,0.27116524,106300.0,106290.0,0.094082]
[1737650866130,0.27443953,106300.0,106280.0,0.584226]
[1737650866373,0.02349972,106300.0,106290.0,0.094082]
[1737650867096,0.02349972,106300.0,106270.0,0.282282]
[1737650867097,0.117082,106290.0,106270.0,0.282282]
[1737650867241,0.17659252,106280.0,106270.0,0.282282]
[1737650867796,0.023,106280.0,106270.0,0.282282]
[1737650868015,0.023,106280.0,106230.0,0.00029967]
[1737650868016,0.094126,106240.0,106230.0,0.00029967]
[1737650868224,0.36806581,106240.0,106230.0,0.00029967]
[1737650868442,0.12034729,106240.0,106230.0,0.09443467]
[1737650868648,0.15359252,106260.0,106250.0,0.09411]
[1737650868777,0.15359252,106280.0,106270.0,0.094099]
[1737650869563,0.15359252,106280.0,106270.0,0.00014946]
[1737650869564,0.67162333,106280.0,106270.0,0.00014946]
[1737650870663,0.76997062,106280.0,106270.0,0.00014946]
[1737650870869,0.6163781,106280.0,106270.0,0.00014946]
[1737650871013,0.52394159,106280.0,106270.0,0.00014946]
[1737650871217,0.67753411,106280.0,106270.0,0.00014946]
[1737650872172,0.72573411,106280.0,106270.0,0.00014946]
[1737650872337,0.74573411,106280.0,106270.0,0.00014946]
[1737650872907,0.72573411,106280.0,106270.0,0.00014946]
[1737650873165,0.8230814,106280.0,106270.0,0.00014946]
[1737650873575,0.8230814,106280.0,106230.0,0.00029967]
[1737650873576,0.094126,106240.0,106230.0,0.00029967]
[1737650873783,0.67165833,106240.0,106230.0,0.00044916]
[1737650874338,0.72165833,106240.0,106230.0,0.00044916]
[1737650874534,0.32659252,106240.0,106230.0,0.09458416]
[1737650874742,0.32659252,106240.0,106230.0,0.09558416]
[1737650874909,0.17659252,106240.0,106230.0,0.09558416]
[1737650875278,0.71311597,106240.0,106230.0,0.00144916]
[1737650875611,0.073,106230.0,106200.0,0.00029967]
[1737650875814,0.27074552,106210.0,106200.0,0.00044928]
[1737650876019,0.51809281,106210.0,106200.0,0.00044928]
[1737650877096,0.67168533,106210.0,106200.0,0.00044928]
[1737650877340,0.6154401,106210.0,106200.0,0.00044928]
[1737650877512,0.81903262,106210.0,106200.0,0.00044928]
[1737650877667,0.6654401,106210.0,106200.0,0.00044928]
[1737650877895,0.56909281,106210.0,106200.0,0.00044928]
[1737650878074,0.67268533,106210.0,106200.0,0.00044928]
[1737650878598,0.56909281,106210.0,106200.0,0.00044928]
[1737650878796,0.57853212,106210.0,106200.0,0.00044928]
[1737650879180,0.73212464,106210.0,106200.0,0.00044928]
[1737650879385,0.57853212,106210.0,106200.0,0.00044928]
[1737650880473,0.73212464,106210.0,106200.0,0.00044928]
[1737650880645,0.70134788,106210.0,106200.0,0.00044928]
[1737650880856,0.023,106190.0,106170.0,0.37702141]
[1737650880997,0.27077152,106180.0,106170.0,0.2829961]
[1737650881205,0.27393981,106180.0,106170.0,0.2829961]
[1737650881402,0.17659252,106180.0,106170.0,0.2829961]
[1737650881612,0.27393981,106180.0,106170.0,0.0946361]
[1737650881829,0.51811881,106180.0,106170.0,0.0004481]
[1737650882271,0.36811881,106180.0,106170.0,0.0946361]
[1737650882690,0.36811881,106180.0,106170.0,0.0004481]
[1737650882897,0.36811881,106180.0,106170.0,0.0956361]
[1737650883119,0.36811881,106180.0,106170.0,0.0014481]
[1737650883340,0.36811881,106180.0,106150.0,0.2826]
[1737650883341,0.211386,106170.0,106150.0,0.2826]
[1737650883535,0.27078952,106160.0,106150.0,0.28309911]
[1737650883798,0.57438204,106160.0,106150.0,0.00049911]
[1737650884002,0.72172933,106160.0,106150.0,0.00049911]
[1737650884157,0.56813681,106160.0,106150.0,0.00049911]
[1737650884392,0.15359252,106170.0,106160.0,0.094197]
[1737650884654,0.25093981,106170.0,106150.0,0.18890011]
[1737650884900,0.24778952,106160.0,106150.0,0.09469911]
[1737650885071,0.25093981,106170.0,106160.0,0.094197]
[1737650885500,0.023,106160.0,106150.0,0.28310211]
[1737650885897,0.01863381,106180.0,106170.0,0.094188]
[1737650886116,0.17222633,106180.0,106170.0,0.094188]
[1737650886324,0.15359252,106200.0,106170.0,0.188361]
[1737650886544,0.1728638,106210.0,106200.0,0.094161]
[1737650886697,0.27021109,106210.0,106200.0,0.094161]
[1737650887099,0.094165,106200.0,106180.0,0.376705]
[1737650887303,0.21451229,106200.0,106190.0,0.09417]
[1737650887648,0.21451229,106200.0,106170.0,0.37673]
[1737650887649,0.11717,106190.0,106170.0,0.37673]
[1737650887805,0.11717,106190.0,106170.0,0.28269575]
[1737650887806,0.17659252,106180.0,106170.0,0.28269575]
[1737650888214,0.42393981,106180.0,106170.0,0.00014975]
[1737650888375,0.51811881,106180.0,106170.0,0.00014975]
[1737650888740,0.57303458,106180.0,106170.0,0.00014975]
[1737650888947,0.282621,106150.0,106130.0,0.4565702]
[1737650889160,0.27080752,106140.0,106130.0,0.28345031]
[1737650889366,0.27393981,106140.0,106130.0,0.09501531]
[1737650889692,0.36815481,106140.0,106130.0,0.09501531]
[1737650889892,0.36815481,106140.0,106130.0,0.00079731]
[1737650890101,0.36815481,106140.0,106130.0,0.09502131]
[1737650890259,0.55402796,106140.0,106130.0,0.00079731]
[1737650890466,0.60894571,106140.0,106130.0,0.00079731]
[1737650890694,0.55894571,106140.0,106130.0,0.00079731]
[1737650891144,0.61794571,106140.0,106130.0,0.00179731]
[1737650891339,0.58794571,106140.0,106130.0,0.00179731]
[1737650891572,0.58207256,106140.0,106130.0,0.00179731]
[1737650891706,0.53207256,106140.0,106130.0,0.00179731]
[1737650891922,0.58207256,106140.0,106130.0,0.00179731]
[1737650892119,0.5614906,106140.0,106130.0,0.00179731]
[1737650892594,0.71508312,106140.0,106130.0,0.00179731]
[1737650892889,0.71508312,106140.0,106120.0,1e-08]
[1737650892890,0.49440904,106130.0,106120.0,1e-08]
[1737650893057,0.59175633,106130.0,106120.0,1e-08]
[1737650893264,0.43816381,106130.0,106120.0,1e-08]
[1737650893468,0.41816381,106130.0,106120.0,1e-08]
[1737650893674,0.34516381,106130.0,106120.0,1e-08]
[1737650893870,0.073,106120.0,106110.0,0.0002982]
[1737650894076,0.59176433,106120.0,106110.0,0.0002982]
[1737650894274,0.69176433,106120.0,106110.0,0.0002982]
[1737650894630,0.71983369,106120.0,106110.0,0.0002982]
[1737650895341,0.267241,106110.0,106100.0,0.00029883]
[1737650895509,0.64284404,106090.0,106080.0,0.01603971]
[1737650895843,0.76826069,106090.0,106080.0,0.01603971]
[1737650895952,0.287268,106080.0,106070.0,6e-05]
[1737650896159,0.69180033,106080.0,106070.0,6e-05]
[1737650896372,0.173,106050.0,106040.0,0.09460204]
[1737650896574,0.51823481,106050.0,106040.0,0.09460304]
[1737650896820,0.51873345,106050.0,106040.0,0.00029904]
[1737650897038,0.67232597,106050.0,106040.0,0.00029904]
[1737650897393,0.51873345,106050.0,106040.0,0.00029904]
[1737650898180,0.119241,106020.0,106010.0,0.08284496]
[1737650898389,0.29433,106010.0,106000.0,0.07502377]
[1737650898596,0.523277,106010.0,106000.0,0.07484899]
[1737650898800,0.49526981,106010.0,106000.0,0.00012447]
[1737650899477,0.76920962,106010.0,106000.0,0.00012447]
[1737650899683,0.76920962,106010.0,105990.0,0.00029925]
[1737650899684,0.59452404,106000.0,105990.0,0.00029925]
[1737650899898,0.70032895,106000.0,105990.0,0.00029925]
[1737650900108,0.79727852,106000.0,105990.0,1e-08]
[1737650900329,0.42393981,106000.0,105990.0,1e-08]
[1737650900548,0.42393981,106000.0,105990.0,0.09434801]
[1737650900549,0.40093981,106000.0,105990.0,0.09434801]
[1737650901046,0.00049834,106010.0,105990.0,0.2154273]
[1737650901264,0.00049834,106010.0,106000.0,0.094339]
[1737650901461,0.00049834,106010.0,106000.0,0.114019]
[1737650901873,0.00049834,106010.0,106000.0,0.38136629]
[1737650902111,0.21899252,106080.0,106050.0,0.094289]
[1737650902112,0.39214252,106080.0,106050.0,0.094289]
[1737650902325,0.39214252,106080.0,106030.0,0.188613]
[1737650902326,0.0943,106050.0,106030.0,0.188613]
[1737650902546,0.36824781,106040.0,106020.0,0.302628]
[1737650902757,0.094312,106030.0,106020.0,0.094316]
[1737650902964,0.27034729,106030.0,106020.0,0.094316]
[1737650903412,0.27034729,106030.0,106020.0,0.09446578]
[1737650903863,0.43648752,106050.0,106020.0,0.09646578]
[1737650904097,0.5027268,106070.0,106050.0,0.094295]
[1737650904306,0.5027268,106070.0,106060.0,0.094286]
[1737650904307,0.25093981,106070.0,106060.0,0.094286]
[1737650904511,0.53377181,106070.0,106050.0,0.282864]
[1737650904723,0.0943,106050.0,106030.0,0.094309]
[1737650904885,0.12034729,106040.0,106030.0,0.094312]
[1737650905085,0.39789352,106050.0,106020.0,0.377272]
[1737650905469,0.15,106050.0,106040.0,0.094304]
[1737650907895,0.15,106050.0,106030.0,0.565838]
[1737650907896,0.65294876,106080.0,106060.0,0.094286]
[1737650908160,0.56173905,106080.0,106060.0,0.471411]
[1737650908404,0.023,106060.0,106050.0,0.282867]
[1737650908647,0.27034729,106060.0,106050.0,0.282867]
[1737650909153,0.27034729,106060.0,106050.0,0.28301678]
[1737650909400,0.30151169,106080.0,106070.0,0.094277]
[1737650909401,0.0049196,106080.0,106070.0,0.094277]
[1737650909644,0.15389198,106090.0,106080.0,0.094268]
[1737650909645,0.00029946,106090.0,106080.0,0.094268]
[1737650909881,0.09764675,106090.0,106080.0,0.094268]
[1737650911553,0.12064675,106090.0,106080.0,0.094268]
[1737650912439,0.00129946,106090.0,106080.0,0.094268]
[1737650912815,0.00129946,106090.0,106080.0,0.19161529]
[1737650913028,0.43627952,106130.0,106110.0,0.282715]
[1737650913236,0.09734729,106120.0,106110.0,0.282715]
[1737650913665,0.24734729,106120.0,106110.0,0.282715]
[1737650913958,0.21458529,106120.0,106100.0,0.471224]
[1737650914160,0.25143845,106120.0,106100.0,0.18849]
[1737650914363,0.53414545,106120.0,106100.0,0.471238]
[1737650914796,0.27084593,106120.0,106110.0,0.094241]